fUSD/lending_fUSD_20240722
["ID","MTS","AMOUNT","RATE_DAILY","PERIOD"]
[332914014,1721677833391,-373.19283272,0.000118,2]
[332914015,1721677833401,-500.0,0.00011804,2]
[332914016,1721677833411,-500.0,0.00011805,2]
[332914017,1721677833426,-545.321,0.00011809,2]
[332914018,1721677833435,-306.232,0.00011809,2]
[332914019,1721677833445,-1767.12,0.00011809,2]
[332914020,1721677833455,-752.986,0.00011809,2]
[332914021,1721677833464,-241.043,0.00011818,2]
[332914022,1721677833474,-12784.53041798,0.0001185,2]
[332914023,1721677833483,-155.0,0.0001185,2]
[332914024,1721677833493,-155.0,0.0001185,2]
[332914025,1721677833502,-539.18566561,0.0001185,2]
[332914026,1721677833512,-241.043,0.00011872,2]
[332914027,1721677833521,-194.30664548,0.0001189,2]
[332914028,1721677833531,-194.30664548,0.0001189,2]
[332914029,1721677833540,-150.75,0.0001189,2]
[332914030,1721677833549,-355.75,0.0001189,2]
[332914031,1721677833558,-265.88,0.0001189,2]
[332914032,1721677833567,-531.60155554,0.00011896,2]
[332914033,1721677833577,-828.479618,0.00011897,2]
[332914034,1721677833586,-194.69317521,0.00011899,2]
[332914035,1721677833596,-6173.62026594,0.00011899,2]
[332914036,1721677833605,-750.9,0.00011899,2]
[332914037,1721677833615,-750.9,0.00011899,2]
[332914038,1721677833625,-750.9,0.00011899,2]
[332914039,1721677833634,-750.9,0.00011899,2]
[332914040,1721677833645,-750.9,0.00011899,2]
[332914041,1721677833654,-750.9,0.00011899,2]
[332914042,1721677833664,-750.9,0.00011899,2]
[332914043,1721677833676,-750.9,0.00011899,2]
[332914044,1721677833685,-750.9,0.00011899,2]
[332914045,1721677833694,-750.9,0.00011899,2]
[332914046,1721677833704,-750.9,0.00011899,2]
[332914047,1721677833714,-750.9,0.00011899,2]
[332914048,1721677833723,-750.9,0.00011899,2]
[332914049,1721677833733,-750.9,0.00011899,2]
[332914050,1721677833743,-750.9,0.00011899,2]
[332914051,1721677833754,-750.9,0.00011899,2]
[332914052,1721677833765,-750.9,0.00011899,2]
[332914053,1721677833773,-750.9,0.00011899,2]
[332914054,1721677833782,-750.9,0.00011899,2]
[332914055,1721677833793,-750.9,0.00011899,2]
[332914056,1721677833803,-750.9,0.00011899,2]
[332914057,1721677833815,-750.9,0.00011899,2]
[332914058,1721677833825,-750.9,0.00011899,2]
[332914059,1721677833835,-751.08926258,0.00011899,2]
[332914060,1721677833845,-367511.22584747,0.000119,2]
[332914061,1721677833861,-455624.48128726,0.000119,2]
[332914096,1721677838778,-414.6768374,0.00011525,2]
[332914098,1721677838788,-1000.0,0.000118,2]
[332914100,1721677838799,-4829.89261087,0.000119,2]
[332914103,1721677838810,-614.60712979,0.000119,2]
[332914106,1721677838829,-3892.57385441,0.000119,2]
[332914109,1721677838855,-6274.0,0.000119,2]
[332914427,1721677841991,-873.3,0.000118,2]
[332914429,1721677842003,-2160.275978,0.000118,2]
[332914445,1721677842149,-18902.82031734,0.000118,2]
[332914447,1721677842159,-4261.60749134,0.000119,2]
[332914458,1721677842260,-34179.145,0.000119,2]
[332914563,1721677843262,-758065.97559829,0.000119,2]
[332914578,1721677843373,-1363.43789743,0.000119,2]
[332914580,1721677843384,-382.40858888,0.000119,2]
[332914885,1721677846384,-606.31664297,0.00010959,2]
[332914924,1721677846741,-253.21335703,0.00010959,2]
[332914926,1721677846751,-265.9107523,0.000118,2]
[332914932,1721677846795,-5529.1214477,0.000118,2]
[332914934,1721677846805,-3031.7909504,0.000119,2]
[332914936,1721677846817,-1585.62163241,0.000119,2]
[332914946,1721677846915,-349.3,0.000119,2]
[332914948,1721677846927,-544.555,0.000119,2]
[332914954,1721677846971,-651232.52337417,0.000119,2]
[332914959,1721677847017,-673.59168614,0.000119,2]
[332917158,1721678126107,361.3,8.706e-05,2]
[332917159,1721678162771,2406.6105776,8.706e-05,2]
[332917163,1721678382796,3598.42696385,8.706e-05,2]
[332917164,1721678420863,-606.0,0.00013,30]
[332917165,1721678482035,692.30085807,9.959e-05,2]
[332917166,1721678665311,343.23,8.219e-05,2]
[332917167,1721678707203,1137.62900031,9.962e-05,2]
[332917168,1721678717244,2244.84,9.95e-05,2]
[332917170,1721678737025,250.0,9.924e-05,2]
[332917173,1721678872025,23135.6403816,0.00025,120]
[332917174,1721678932367,250.0,9.991e-05,2]
[332917239,1721679012215,3583.0331,9.918e-05,2]
[332917253,1721679031547,-2884.024,0.00010001,2]
[332917254,1721679031578,-882.40264769,0.00010001,2]
[332917255,1721679031590,-297.04785907,0.00010001,2]
[332917256,1721679031601,-1774.24549324,0.00010001,2]
[332917257,1721679031611,-138.87450676,0.0001001,2]
[332917258,1721679031637,-293.94549324,0.0001001,2]
[332917259,1721679031646,-300.0,0.00010017,2]
[332917260,1721679031657,-2193.40368587,0.00010018,2]
[332917261,1721679031685,-21706.59631413,0.00010018,2]
[332917262,1721679031695,-1377.8296,0.00010059,2]
[332917263,1721679031705,-162.14215494,0.0001006,2]
[332917264,1721679031714,-1000.0,0.00010178,2]
[332917265,1721679031724,-1852.42,0.00010197,2]
[332917266,1721679031734,-10000.0,0.00010216,2]
[332917267,1721679031744,-1926.56,0.0001023,2]
[332917268,1721679031754,-1332.5861725,0.0001025,2]
[332917269,1721679031765,-150.0,0.00010259,2]
[332917270,1721679031774,-500.0,0.0001026,2]
[332917271,1721679031784,-1400.0,0.0001026,2]
[332917272,1721679031794,-2000.0,0.0001026,2]
[332917273,1721679031805,-198.8,0.00010305,2]
[332917274,1721679031815,-378.43,0.00010319,2]
[332917275,1721679031825,-499.99,0.00010434,2]
[332917276,1721679031835,-343.23,0.00010477,2]
[332917277,1721679031845,-2701.6301558,0.00010553,2]
[332917278,1721679031855,-1255.6296301,0.00010553,2]
[332917279,1721679031864,-165.92746,0.00010553,2]
[332917280,1721679031874,-166.91201057,0.00010686,2]
[332917281,1721679031883,-235.35180385,0.00010686,2]
[332917282,1721679031893,-4467.02483465,0.00010686,2]
[332917283,1721679031903,-348.5421291,0.00010686,2]
[332917284,1721679031914,-155.41327873,0.00010686,2]
[332917285,1721679031925,-158.07088294,0.00010686,2]
[332917286,1721679031935,-652.74964097,0.00010686,2]
[332917287,1721679031945,-2206.29679381,0.00010686,2]
[332917288,1721679031955,-244.75902777,0.00010686,2]
[332917289,1721679031965,-344.93292638,0.00010686,2]
[332917290,1721679031975,-539.18566561,0.00010686,2]
[332917291,1721679031986,-364.69772271,0.00010686,2]
[332917292,1721679031996,-518.54,0.00010941,2]
[332917293,1721679032005,-250.0,0.00010959,2]
[332917294,1721679032015,-150.0,0.00010959,2]
[332917295,1721679032025,-280.0,0.00010959,2]
[332917296,1721679032035,-233.33,0.00010959,2]
[332917297,1721679032044,-194.44,0.00010959,2]
[332917298,1721679032054,-162.04,0.00010959,2]
[332917299,1721679032064,-810.21,0.00010959,2]
[332917300,1721679032074,-11000.0,0.00011,2]
[332917301,1721679032084,-420.0,0.00011018,2]
[332917302,1721679032094,-1400.0,0.00011082,2]
[332917303,1721679032104,-2000.0,0.00011082,2]
[332917304,1721679032114,-24764.73626769,0.00011105,2]
[332917305,1721679032124,-649.0349847,0.00011105,2]
[332917306,1721679032133,-1446.10862011,0.00011105,2]
[332917308,1721679032143,-820.52431807,0.00011105,2]
[332917309,1721679032152,-298.26312183,0.00011105,2]
[332917310,1721679032163,-724.37261743,0.0001116,2]
[332917311,1721679032173,-521.82541979,0.00011206,2]
[332917312,1721679032183,-195.0,0.00011275,2]
[332917313,1721679032192,-156.156354,0.00011322,2]
[332917314,1721679032202,-439.52750479,0.00011324,2]
[332917315,1721679032212,-162.71529348,0.00011324,2]
[332917316,1721679032221,-155.0,0.00011324,2]
[332917317,1721679032231,-155.0,0.00011324,2]
[332917318,1721679032240,-2383.29549388,0.00011384,2]
[332917319,1721679032250,-253.95564446,0.00011384,2]
[332917320,1721679032259,-1000.0,0.00011451,2]
[332917321,1721679032269,-168.73,0.00011507,2]
[332917322,1721679032278,-168.73,0.00011559,2]
[332917323,1721679032289,-212.844,0.00011563,2]
[332917324,1721679032298,-162255.14309382,0.000116,2]
[332917325,1721679032310,-273.53016876,0.000116,2]
[332917456,1721679039127,-32260.25951585,0.000116,2]
[332917465,1721679039217,-3166.04903559,0.000116,2]
[332917468,1721679039229,-3151.98,0.000116,2]
[332917490,1721679039402,-7374.97158758,0.000116,2]
[332917497,1721679039457,-25144.32882616,0.000116,2]
[332917499,1721679039472,-464.7543525,0.000116,2]
[332917513,1721679039600,-31478.88494011,0.000116,2]
[332917589,1721679040347,-69789.09847963,0.000116,2]
[332917591,1721679040356,-168.73,0.00011611,2]
[332917593,1721679040366,-168.73,0.00011664,2]
[332917595,1721679040376,-168.73,0.00011718,2]
[332917597,1721679040385,-168.73,0.00011771,2]
[332917599,1721679040395,-763.15341,0.0001178,2]
[332917601,1721679040405,-105654.0,0.00011781,2]
[332917603,1721679040414,-721.34365302,0.000118,2]
[332917605,1721679040425,-7500.0,0.000118,2]
[332917607,1721679040435,-2350.3356915,0.000118,2]
[332917610,1721679040445,-500.0,0.00011805,2]
[332917612,1721679040456,-168.73,0.00011826,2]
[332917614,1721679040469,-162.64012203,0.0001185,2]
[332917616,1721679040480,-415.51145268,0.0001185,2]
[332917618,1721679040489,-168.73,0.00011881,2]
[332917619,1721679040499,-155.0,0.00011896,2]
[332917621,1721679040508,-155.0,0.00011896,2]
[332917623,1721679040518,-150.0,0.00011899,2]
[332917625,1721679040528,-229540.21826297,0.000119,2]
[332917677,1721679041028,-2780.7092616,0.000119,2]
[332917679,1721679041040,-3404.367326,0.000119,2]
[332917826,1721679042626,-367.69336575,0.000119,2]
[332917828,1721679042638,-381.4185858,0.000119,2]
[332917830,1721679042649,-55354.77005234,0.000119,2]
[332917832,1721679042660,-1776709.40967067,0.000119,2]
[332917837,1721679042700,-4526.756931,0.000119,2]
[332917839,1721679042712,-641.5247125,0.000119,2]
[332917841,1721679042723,-1732.275,0.000119,2]
[332917845,1721679042747,-470.74594399,0.000119,2]
[332917847,1721679042758,-361.6920653,0.000119,2]
[332917849,1721679042769,-1093.40750844,0.000119,2]
[332917851,1721679042780,-27732.63906026,0.000119,2]
[332917854,1721679042799,-3067.36856786,0.000119,2]
[332917856,1721679042811,-382.12258582,0.000119,2]
[332917858,1721679042822,-814.55264413,0.000119,2]
[332917861,1721679042841,-1070.68609688,0.000119,2]
[332917863,1721679042853,-273.88727203,0.000119,2]
[332917865,1721679042866,-6400.89541296,0.000119,2]
[332917867,1721679042877,-504444.36593813,0.000119,2]
[332917870,1721679042896,-641.90459257,0.000119,2]
[332917872,1721679042907,-9429.27213724,0.000119,2]
[332917875,1721679042928,-8370.02198861,0.000119,2]
[332918124,1721679045594,-286574.68796455,0.000119,2]
[332918130,1721679045648,-500.10126801,0.000119,2]
[332918132,1721679045660,-673536.64198427,0.000119,2]
[332918134,1721679045672,-1070.87014405,0.000119,2]
[332918139,1721679045702,-670.79233141,0.000119,2]
[332918213,1721679046379,-6248.55757461,0.000119,2]
[332918218,1721679046419,-5551.06842863,0.000119,2]
[332918222,1721679046450,-516.8461897,0.000119,2]
[332918224,1721679046462,-302.524,0.000119,2]
[332918226,1721679046477,-898.99522388,0.000119,2]
[332918228,1721679046488,-3941.16864385,0.000119,2]
[332918231,1721679046500,-1674.76306231,0.000119,2]
[332920728,1721679211397,132.62950017,9.074e-05,2]
[332920730,1721679904978,322.32,8.715e-05,2]
[332920837,1721680202913,157.072305,0.00024,60]
[332920838,1721680206141,157.072305,0.00024,61]
[332920839,1721680222328,157.072305,0.00024,65]
[332920840,1721680225216,157.072305,0.00024,66]
[332920841,1721680228294,157.072305,0.00024,67]
[332920845,1721680231640,-569.92,9.999e-05,2]
[332920846,1721680231671,157.072305,0.00024,68]
[332920847,1721680231701,-652.08,9.999e-05,2]
[332920848,1721680231711,-204.18166783,0.0001,2]
[332920849,1721680231758,-4415.65610793,0.0001,2]
[332920850,1721680231768,-2000.0,0.0001026,2]
[332920851,1721680231777,-1700.0,0.0001026,2]
[332920852,1721680231786,-414.01891517,0.00010563,2]
[332920853,1721680231796,-180.89018597,0.00010563,2]
[332920854,1721680231808,-790.15908962,0.00010563,2]
[332920855,1721680231957,-777.82664874,0.00010563,2]
[332920856,1721680232128,-677.05750701,0.00010563,2]
[332920857,1721680232138,-203.30074424,0.00010563,2]
[332920858,1721680232147,-250.0,0.00010594,2]
[332920859,1721680232157,-200.0,0.00010615,2]
[332920860,1721680232167,-231.8691261,0.00010632,2]
[332920861,1721680232179,-18.1308739,0.00010632,2]
[332920862,1721680232188,-1014.96037971,0.00010634,2]
[332920910,1721680238391,-6557.68962029,0.00010634,2]
[332920912,1721680238401,-13664.59,0.00010639,2]
[332920914,1721680238410,-1167.32172387,0.0001066,2]
[332920916,1721680238421,-892.30155678,0.0001066,2]
[332920918,1721680238432,-653.56671935,0.0001066,2]
[332920920,1721680238441,-154.16610012,0.00010701,2]
[332920922,1721680238451,-235.09673706,0.00010701,2]
[332920924,1721680238462,-51.36326294,0.00010701,2]
[332920926,1721680238471,-820.02227635,0.00010921,2]
[332920929,1721680238482,-179.97772365,0.00010921,2]
[332920930,1721680238491,-250.0,0.00010959,2]
[332920932,1721680238500,-179.6,0.00010959,2]
[332920934,1721680238509,-898.0,0.00010959,2]
[332920936,1721680238518,-1433.91078519,0.00010959,5]
[332920942,1721680238563,-66.08921481,0.00010959,5]
[332920944,1721680238572,-322.32,0.00010978,2]
[332920946,1721680238582,-539.18566561,0.00010999,2]
[332920948,1721680238591,-890.85720905,0.00010999,2]
[332920950,1721680238600,-155.0,0.00010999,2]
[332920952,1721680238609,-155.0,0.00010999,2]
[332920954,1721680238619,-181.50980067,0.00010999,2]
[332920956,1721680238628,-303.05198797,0.00010999,2]
[332920958,1721680238641,-155.0,0.00010999,2]
[332920960,1721680238651,-709.88987325,0.00010999,2]
[332920962,1721680238660,-525.50769677,0.00010999,2]
[332920964,1721680238670,-2000.0,0.00011082,2]
[332920966,1721680238679,-1700.0,0.00011082,2]
[332920968,1721680238688,-1000.0,0.00011104,2]
[332920970,1721680238697,-1267.4192646,0.00011105,2]
[332920972,1721680238707,-4073.08114005,0.00011105,2]
[332920974,1721680238717,-298.26312183,0.00011105,2]
[332920976,1721680238726,-371.51160251,0.00011105,2]
[332920978,1721680238735,-4513.97200915,0.00011105,2]
[332920980,1721680238744,-2206.29679381,0.00011105,2]
[332920982,1721680238753,-438.48095415,0.00011105,2]
[332920984,1721680238762,-155.0,0.00011105,2]
[332920986,1721680238771,-210.02763994,0.00011105,2]
[332920988,1721680238780,-155.0,0.00011105,2]
[332920990,1721680238790,-155.0,0.00011105,2]
[332920992,1721680238799,-974.06718929,0.00011105,2]
[332920994,1721680238808,-1446.10862011,0.00011105,2]
[332920996,1721680238817,-158.07088294,0.00011105,2]
[332920998,1721680238826,-329.5470295,0.00011105,2]
[332921000,1721680238835,-363.71380104,0.00011105,2]
[332921002,1721680238844,-168.09551316,0.00011105,2]
[332921004,1721680238854,-155.0,0.00011105,2]
[332921006,1721680238865,-4611.72945739,0.00011186,2]
[332921008,1721680238876,-18018.88556283,0.00011186,2]
[332921010,1721680238885,-331.48873836,0.00011206,2]
[332921012,1721680238895,-834.527,0.000114,2]
[332921014,1721680238904,-761.8685,0.000115,2]
[332921016,1721680238914,-900.11667456,0.000115,2]
[332921019,1721680238937,-49972.32452362,0.000115,2]
[332921021,1721680238950,-684.57166016,0.000115,2]
[332921024,1721680238962,-3692.34000001,0.000115,2]
[332921027,1721680238984,-703.20536157,0.000115,2]
[332921029,1721680238995,-9998.61859589,0.000115,2]
[332921031,1721680239006,-35544.51210271,0.000115,2]
[332921034,1721680239021,-1254.9956438,0.000115,2]
[332921038,1721680239048,-622.21983407,0.000115,2]
[332921040,1721680239059,-1637.57470361,0.000115,2]
[332921042,1721680239069,-1467.789,0.000115,2]
[332921044,1721680239079,-3580.99001221,0.000115,2]
[332921046,1721680239090,-1517.94477704,0.000115,2]
[332921126,1721680239673,-1231.12611075,0.000115,2]
[332921129,1721680239682,-1155.03888925,0.000115,2]
[332921132,1721680239693,-1040.80179994,0.000115,2]
[332921137,1721680239704,-539.06283141,0.000115,2]
[332921140,1721680239715,-752.71832399,0.000115,2]
[332921143,1721680239730,-2607.20000779,0.000115,2]
[332921150,1721680239758,-284.87,0.000115,2]
[332921154,1721680239769,-386.72778547,0.000115,2]
[332921164,1721680239808,-43396.33147046,0.000115,2]
[332921166,1721680239818,-400.4380872,0.000115,2]
[332921169,1721680239831,-703.90320097,0.000115,2]
[332921172,1721680239842,-2366.84226352,0.000115,2]
[332921177,1721680239853,-656.14,0.000115,2]
[332921184,1721680239888,-4336.39094078,0.000115,2]
[332921187,1721680239899,-37213.32199301,0.000115,2]
[332921191,1721680239913,-1269.49880621,0.000115,2]
[332921194,1721680239923,-500.0,0.000115,2]
[332921197,1721680239933,-1632.38014955,0.00011525,2]
[332921199,1721680239944,-1632.38014955,0.00011525,2]
[332921202,1721680239953,-639.90791594,0.00011662,2]
[332921281,1721680240445,-572.89003399,0.00011662,2]
[332921283,1721680240454,-139527.45298703,0.000117,2]
[332921285,1721680240465,-2124.70574833,0.000117,2]
[332921287,1721680240476,-3046.87774525,0.000117,2]
[332921289,1721680240485,-3000.0,0.0001178,2]
[332921291,1721680240495,-559.648773,0.000118,2]
[332921293,1721680240504,-559.648773,0.000118,2]
[332921295,1721680240513,-500.0,0.000118,3]
[332921297,1721680240522,-212.89769235,0.000118,2]
[332921299,1721680240532,-159.00411161,0.000118,2]
[332921301,1721680240541,-7500.0,0.000118,2]
[332921303,1721680240550,-316.02679608,0.000118,2]
[332921305,1721680240559,-168.95488333,0.000118,2]
[332921307,1721680240569,-211132.58643887,0.000119,2]
[332921309,1721680240580,-385.66261705,0.000119,2]
[332921312,1721680240599,-505.2624392,0.000119,2]
[332921314,1721680240610,-752.06647049,0.000119,2]
[332921316,1721680240622,-3583.15614854,0.000119,2]
[332921318,1721680240633,-55921.03813831,0.000119,2]
[332921320,1721680240650,-6540.44346774,0.000119,2]
[332921322,1721680240661,-281.186742,0.000119,2]
[332921325,1721680240672,-3762.92114843,0.000119,2]
[332921327,1721680240684,-6078.17046393,0.000119,2]
[332921329,1721680240702,-8864.50863,0.000119,2]
[332921334,1721680240744,-353.95296555,0.000119,2]
[332921538,1721680242727,-302.0,0.000119,2]
[332921540,1721680242738,-369.12270208,0.000119,2]
[332921546,1721680242788,-6743.53679999,0.000119,2]
[332921548,1721680242799,-567.63859501,0.000119,2]
[332921551,1721680242810,-23332.81698878,0.000119,2]
[332921569,1721680242976,-32933.87196871,0.000119,2]
[332921571,1721680242987,-1134.31999994,0.000119,2]
[332921573,1721680242999,-912.45,0.000119,2]
[332921928,1721680246576,-494.191083,0.000119,2]
[332921931,1721680246596,-623.04947874,0.000119,2]
[332921933,1721680246607,-1919.57705919,0.000119,2]
[332921936,1721680246618,-371.88291753,0.000119,2]
[332921938,1721680246629,-1324.8,0.000119,2]
[332921941,1721680246647,-344.849717,0.000119,2]
[332921943,1721680246658,-453.46218221,0.000119,2]
[332921945,1721680246668,-611.967,0.000119,2]
[332921947,1721680246679,-543.21322342,0.000119,2]
[332921952,1721680246717,-4720.0828,0.000119,2]
[332921954,1721680246728,-3070.53819964,0.000119,2]
[332921957,1721680246739,-321.8,0.000119,2]
[332921959,1721680246750,-461.23365298,0.000119,2]
[332921961,1721680246761,-393.94196116,0.000119,2]
[332921963,1721680246771,-310.531547,0.000119,2]
[332921965,1721680246782,-445.3367507,0.000119,2]
[332922296,1721680250446,157.072305,0.00024,72]
[332922557,1721680253448,157.072305,0.00024,73]
[332922858,1721680256763,157.072305,0.00024,74]
[332923211,1721680260304,157.072305,0.00024,75]
[332924147,1721680273561,157.072305,0.00025,120]
[332924148,1721680275896,157.072305,0.00025,120]
[332924149,1721680277312,157.072305,0.00025,120]
[332924150,1721680301846,208.072305,0.00025,120]
[332924156,1721680671037,792305.48636418,0.00025,120]
[332924157,1721680714705,836153.06150625,0.0002,120]
[332924158,1721680714729,500000.0,0.0002,120]
[332924159,1721680734360,1000000.0,0.00017,120]
[332924160,1721680830418,-290.08,9.207e-05,2]
[332924161,1721680830440,-1500.0,0.0001026,2]
[332924162,1721680830462,-363.97,0.0001026,2]
[332924164,1721681018821,275.57,8.632e-05,2]
[332924165,1721681033263,-300.0,0.00010259,2]
[332924166,1721681033283,-936.03,0.0001026,2]
[332924167,1721681033303,-1400.0,0.0001026,2]
[332924168,1721681033325,-1049.01515788,0.0001026,2]
[332924169,1721681033346,-557.84785551,0.0001026,2]
[332924170,1721681033365,-300.26542006,0.0001026,2]
[332924171,1721681033387,-275.57,0.00010896,2]
[332924172,1721681033408,-1000.0,0.00010956,2]
[332924173,1721681033428,-606.0,0.00010968,2]
[332924174,1721681033448,-1500.0,0.00011057,5]
[332924175,1721681033468,-500.0,0.00011057,3]
[332924176,1721681033488,-1000.0,0.00011079,2]
[332924177,1721681033509,-1300.0,0.00011082,2]
[332924178,1721681033529,-1400.0,0.00011082,2]
[332924179,1721681033549,-20175.27156655,0.00011186,2]
[332924264,1721681431837,-0.259472,0.0001026,2]
[332924265,1721681431865,-1099.740528,0.0001026,2]
[332924266,1721681431874,-1200.0,0.0001026,2]
[332924267,1721681431884,-2186.4,0.00010623,2]
[332924268,1721681431893,-300.0,0.0001067,2]
[332924269,1721681431902,-120.50651126,0.00010671,2]
[332924270,1721681431991,-79.49348874,0.00010671,2]
[332924271,1721681432001,-284.03,0.00010736,2]
[332924272,1721681432010,-134.60707357,0.00010925,2]
[332924309,1721681438029,-267.34797978,0.00010925,2]
[332924310,1721681438066,-149.79494665,0.00010925,2]
[332924311,1721681438075,-719.40452442,0.00010959,5]
[332924313,1721681438223,-780.59547558,0.00010959,5]
[332924314,1721681438234,-250.0,0.00010964,2]
[332924315,1721681438243,-1100.0,0.00011082,2]
[332924316,1721681438252,-1200.0,0.00011082,2]
[332924317,1721681438265,-259.20886868,0.00011105,2]
[332924318,1721681438289,-814.10217745,0.00011105,2]
[332924319,1721681438298,-250.0,0.00011108,2]
[332924320,1721681438308,-150.0,0.00011185,2]
[332924321,1721681438318,-2455.34345367,0.00011186,2]
[332924322,1721681438327,-849.92748839,0.00011186,2]
[332924323,1721681438337,-1049.01515788,0.00011186,2]
[332924325,1721681438346,-366.24152764,0.00011186,2]
[332924326,1721681438355,-6875.99376041,0.00011186,2]
[332924328,1721681438365,-2319.76,0.00011186,2]
[332924330,1721681438374,-298.26312183,0.00011206,2]
[332924332,1721681438383,-1273.51084788,0.00011206,2]
[332924334,1721681438392,-213.29139654,0.00011324,2]
[332924336,1721681438401,-599.45308107,0.00011324,2]
[332924338,1721681438410,-414.01891517,0.00011324,2]
[332924340,1721681438421,-329.5470295,0.00011324,2]
[332924342,1721681438430,-155.0,0.00011384,2]
[332924344,1721681438439,-699.27737381,0.00011384,2]
[332924345,1721681438448,-500.0,0.000114,2]
[332924347,1721681438457,-3969.9594,0.000114,2]
[332924349,1721681438466,-17091.21304321,0.000114,2]
[332924352,1721681438478,-229.08765679,0.000114,2]
[332924354,1721681438487,-362.37310771,0.000114,2]
[332924368,1721681438614,-357.40868175,0.000114,2]
[332924370,1721681438625,-12618.83671054,0.000114,2]
[332924372,1721681438635,-214.15759407,0.00011525,2]
[332924374,1721681438645,-607.2487821,0.00011525,2]
[332924376,1721681438655,-175.66325036,0.00011525,2]
[332924378,1721681438664,-175.66325036,0.00011525,2]
[332924380,1721681438677,-363.71380104,0.00011525,2]
[332924382,1721681438689,-155.0,0.00011525,2]
[332924385,1721681438699,-259.3752,0.0001175,2]
[332924386,1721681438708,-5722.0,0.00011781,2]
[332924388,1721681438718,-215.08383658,0.000118,2]
[332924391,1721681438728,-162.30891772,0.000118,2]
[332924393,1721681438737,-10000.0,0.000118,2]
[332924395,1721681438747,-166.7541308,0.000118,2]
[332924397,1721681438756,-186.28548078,0.000118,2]
[332924399,1721681438765,-210.68453072,0.000118,2]
[332924401,1721681438774,-5295.78062687,0.000118,2]
[332924403,1721681438784,-168.95488333,0.000118,2]
[332924405,1721681438793,-273.7,0.00011808,3]
[332924407,1721681438802,-308.31527903,0.0001185,2]
[332924409,1721681438811,-155.0,0.0001185,2]
[332924411,1721681438820,-155.0,0.0001185,2]
[332924413,1721681438830,-692.53782461,0.0001185,2]
[332924415,1721681438839,-150.0,0.0001189,2]
[332924416,1721681438849,-12843.8972284,0.00011896,2]
[332924418,1721681438858,-22291.28702401,0.00011896,2]
[332924623,1721681440757,-339.46422547,0.00011273,2]
[332924625,1721681440767,-85.82433873,0.00011384,2]
[332924628,1721681440787,-70.06365767,0.00011384,2]
[332924630,1721681440796,-2086.39503966,0.00011896,2]
[332924632,1721681440807,-362.572002,0.00011896,2]
[332924636,1721681440833,-17535.98626211,0.00011896,2]
[332924637,1721681440844,-45081.48907596,0.00011896,2]
[332924638,1721681440891,-988.19359616,0.00011896,2]
[332924639,1721681440902,-303.27304,0.00011896,2]
[332924640,1721681440930,-31402.57782437,0.00011896,2]
[332924641,1721681440941,-8139.78619343,0.00011896,2]
[332924643,1721681440950,-22923.0118565,0.00011896,2]
[332924645,1721681440959,-450.0,0.00011899,2]
[332924647,1721681440968,-445.0,0.00011899,2]
[332924649,1721681440977,-1667.687,0.00011899,2]
[332924651,1721681440986,-544.0,0.00011899,2]
[332924653,1721681440995,-1073.0,0.00011899,2]
[332924655,1721681441004,-8833.80459516,0.000119,2]
[332924658,1721681441022,-5821.42341869,0.000119,2]
[332924661,1721681441044,-1641.30252,0.000119,2]
[332924663,1721681441054,-3017.256,0.000119,2]
[332924665,1721681441065,-2880.424834,0.000119,2]
[332924872,1721681442958,-2210.01787808,0.0001016,2]
[332925235,1721681446641,-815.54267716,0.0001016,2]
[332925237,1721681446651,-1.57743804,0.00011082,2]
[332925248,1721681446752,-6256.73050416,0.00011082,2]
[332925270,1721681446951,-3406.17276,0.00011082,2]
[332928383,1721682139947,277.22,8.891e-05,2]
[332928454,1721682601819,600.0,9.96e-05,2]